fUST/lending_fUST_20240113
["ID","MTS","AMOUNT","RATE_DAILY","PERIOD"]
[311435865,1705102030875,-514.4527992,0.00021571,2]
[311435866,1705102030900,-1822.38176649,0.00021596,2]
[311435867,1705102030922,-74676.81292505,0.00021596,2]
[311435869,1705102034238,-24900.0,0.00019836,2]
[311435870,1705102034258,-68295.86046,0.00021596,2]
[311435871,1705102037118,-62222.99179,0.00021596,2]
[311435877,1705102151115,-198.89011836,0.00019832,2]
[311435878,1705102151138,-872.87113394,0.00019833,2]
[311435879,1705102151159,-521.10576847,0.00019834,2]
[311435880,1705102151180,-1737.77333853,0.00020338,2]
[311435881,1705102151201,-400.15796146,0.00020339,2]
[311435882,1705102151232,-466.82403981,0.0002034,2]
[311435883,1705102151264,-19666.45910515,0.0002034,2]
[311435884,1705102151290,-2475.7657507,0.00020341,2]
[311435885,1705102151314,-3841.487898,0.00020432,2]
[311435886,1705102151338,-8541.90308065,0.00020948,2]
[311435887,1705102151361,-326.84593778,0.00021,2]
[311435888,1705102151548,-2120.45,0.00021585,3]
[311435889,1705102151569,-1767.04,0.00021585,3]
[311435890,1705102151589,-1472.54,0.00021585,3]
[311435891,1705102151607,-322.57910218,0.00021593,2]
[311435892,1705102151627,-331.90052711,0.00021593,2]
[311435893,1705102151645,-322.26268464,0.00021593,2]
[311435894,1705102151664,-2032.94928911,0.00021593,2]
[311435895,1705102151683,-470.84194551,0.00021593,2]
[311435896,1705102151702,-154.93802479,0.00021593,2]
[311435897,1705102151720,-2746.20575269,0.00021594,2]
[311435898,1705102151739,-176.09257222,0.00021595,2]
[311435899,1705102151757,-1578.37727122,0.00021595,2]
[311435900,1705102151775,-155.99132904,0.00021595,2]
[311435901,1705102151795,-296.16942876,0.00021595,2]
[311435902,1705102151814,-245.95422733,0.00021595,2]
[311435903,1705102151833,-212.36692466,0.00021595,2]
[311435904,1705102151852,-23270.89422025,0.00021595,2]
[311435905,1705102151871,-295.44289703,0.00021595,2]
[311435906,1705102151891,-264.78036786,0.00021595,2]
[311435907,1705102151910,-17664.66303275,0.00021595,2]
[311435909,1705102155105,-301.97050514,0.00021593,2]
[311435910,1705102155125,-161.56413426,0.00021594,2]
[311435911,1705102155146,-154.93802479,0.00021594,2]
[311435912,1705102155167,-2159.77677559,0.00021595,2]
[311435913,1705102155188,-74246.92222022,0.00021596,2]
[311435915,1705102165154,-686.72912001,0.00019832,2]
[311435916,1705102165174,-154.93802479,0.00021592,2]
[311435917,1705102165195,-204.50668989,0.00021593,2]
[311435918,1705102165218,-1293.98334762,0.00021595,2]
[311435919,1705102165240,-4176.22079086,0.00021596,2]
[311435920,1705102165260,-3831.52999447,0.00021596,2]
[311435921,1705102165280,-342.22178639,0.00021596,2]
[311435922,1705102165299,-1261.19770865,0.00021596,2]
[311435923,1705102165319,-2080.28320628,0.00021596,2]
[311435924,1705102165340,-300.0,0.00021596,2]
[311435925,1705102165359,-10191.89813466,0.00021596,2]
[311435926,1705102165380,-546.95952545,0.00021596,2]
[311435927,1705102165400,-200.0,0.00021596,2]
[311435928,1705102165419,-1822.38176649,0.00021596,2]
[311435929,1705102165439,-155.1013031,0.00021596,2]
[311435930,1705102165459,-500.0,0.00021917,2]
[311435931,1705102165482,-500.0,0.00021917,2]
[311435932,1705102165502,-500.0,0.00021917,2]
[311435933,1705102165524,-500.0,0.00021917,2]
[311435934,1705102165544,-500.0,0.00021917,2]
[311435935,1705102165567,-1643.5,0.00021917,2]
[311435936,1705102165588,-500.0,0.00021917,2]
[311435937,1705102165608,-500.0,0.00021917,2]
[311435938,1705102165628,-500.0,0.00021917,2]
[311435939,1705102165649,-500.0,0.00021917,2]
[311435940,1705102165670,-425.12426258,0.00022,2]
[311435941,1705102165690,-156.91175548,0.00022,2]
[311435942,1705102165710,-3937.50128455,0.00022,2]
[311435943,1705102165733,-500.0,0.00022191,2]
[311435944,1705102165754,-1643.5,0.00022191,2]
[311435945,1705102165775,-500.0,0.00022191,2]
[311435946,1705102165794,-500.0,0.00022191,2]
[311435947,1705102165813,-289.35830016,0.00022379,2]
[311435948,1705102165833,-500.0,0.00022465,2]
[311435949,1705102165854,-1643.5,0.00022465,2]
[311435950,1705102165874,-500.0,0.00022465,2]
[311435951,1705102165896,-285.7548216,0.00022604,2]
[311435952,1705102165916,-500.0,0.00022606,2]
[311435953,1705102165936,-500.0,0.00022606,2]
[311435954,1705102165957,-500.0,0.00022606,2]
[311435955,1705102165982,-500.0,0.00022606,2]
[311435956,1705102166003,-346.47463783,0.00022606,2]
[311435957,1705102166025,-500.0,0.00022606,2]
[311435958,1705102166047,-500.0,0.00022606,2]
[311435959,1705102166069,-500.0,0.00022739,2]
[311435960,1705102166091,-1643.5,0.00022739,2]
[311435961,1705102166113,-500.0,0.00022739,2]
[311435962,1705102166135,-500.0,0.0002288,2]
[311435963,1705102166156,-500.0,0.0002288,2]
[311435964,1705102166176,-514.09104851,0.00022979,2]
[311435965,1705102166198,-500.0,0.00023013,2]
[311435966,1705102166221,-1643.5,0.00023013,2]
[311435967,1705102166242,-500.0,0.00023013,2]
[311435968,1705102166264,-200.0,0.00023042,7]
[311435969,1705102166283,-204.2,0.00023154,2]
[311435970,1705102166303,-289.35830016,0.00023287,2]
[311435971,1705102166324,-500.0,0.00023287,2]
[311435972,1705102166346,-1643.5,0.00023287,2]
[311435973,1705102166368,-500.0,0.00023287,2]
[311435974,1705102166390,-158.086414,0.00023364,2]
[311435975,1705102166412,-443.43254128,0.00023561,2]
[311435976,1705102166435,-1643.5,0.00023561,2]
[311435977,1705102166458,-500.0,0.00023561,2]
[311435978,1705102166482,-1643.5,0.00023835,2]
[311435979,1705102166505,-500.0,0.00023835,2]
[311435980,1705102166527,-1643.5,0.00024109,2]
[311435981,1705102166548,-500.0,0.00024109,2]
[311435982,1705102166570,-289.35830016,0.00024196,2]
[311435983,1705102166592,-1643.5,0.00024383,2]
[311435984,1705102166615,-500.0,0.00024383,2]
[311435985,1705102166640,-1643.5,0.00024657,2]
[311435986,1705102166660,-500.0,0.00024657,2]
[311435987,1705102166683,-1643.5,0.00024931,2]
[311435988,1705102166706,-500.0,0.00024931,2]
[311435989,1705102166727,-223.89868289,0.00025,2]
[311435990,1705102166747,-289.35830016,0.00025104,2]
[311435991,1705102166769,-501.33793308,0.00025204,2]
[311435992,1705102166795,-500.0,0.00025204,2]
[311435993,1705102166818,-500.0,0.00025204,2]
[311435994,1705102166841,-500.0,0.00025204,2]
[311435995,1705102166862,-500.0,0.00025204,2]
[311435996,1705102166884,-500.0,0.00025204,2]
[311435997,1705102167009,-500.0,0.00025204,2]
[311435998,1705102167035,-500.0,0.00025204,2]
[311435999,1705102167057,-500.0,0.00025204,2]
[311436000,1705102167079,-556.72323517,0.00025204,2]
[311436001,1705102167100,-500.0,0.00025204,2]
[311436002,1705102167125,-500.0,0.00025204,2]
[311436003,1705102167149,-500.0,0.00025204,2]
[311436004,1705102167171,-500.0,0.00025204,2]
[311436005,1705102167193,-500.0,0.00025204,2]
[311436006,1705102167217,-500.0,0.00025204,2]
[311436007,1705102167238,-500.0,0.00025204,2]
[311436008,1705102167259,-500.0,0.00025204,2]
[311436009,1705102167282,-500.0,0.00025204,2]
[311436010,1705102167302,-500.0,0.00025204,2]
[311436011,1705102167324,-500.0,0.00025204,2]
[311436012,1705102167345,-500.0,0.00025204,2]
[311436013,1705102167367,-500.0,0.00025204,2]
[311436014,1705102167389,-1643.5,0.00025205,2]
[311436015,1705102167411,-500.0,0.00025205,2]
[311436016,1705102167434,-578.47123004,0.00025229,2]
[311436017,1705102167457,-500.0,0.00025229,2]
[311436018,1705102167481,-500.0,0.00025229,2]
[311436019,1705102167502,-500.0,0.00025229,2]
[311436020,1705102167523,-500.0,0.00025229,2]
[311436021,1705102167545,-500.0,0.00025229,2]
[311436022,1705102167566,-500.0,0.00025229,2]
[311436023,1705102167586,-500.0,0.00025229,2]
[311436024,1705102167607,-500.0,0.00025229,2]
[311436025,1705102167627,-500.0,0.00025229,2]
[311436026,1705102167647,-500.0,0.00025229,2]
[311436027,1705102167669,-500.0,0.00025229,2]
[311436028,1705102167691,-500.0,0.00025229,2]
[311436029,1705102167711,-500.0,0.00025229,2]
[311436030,1705102167736,-500.0,0.00025229,2]
[311436031,1705102167758,-500.0,0.00025478,2]
[311436032,1705102167780,-500.0,0.00025478,2]
[311436033,1705102167801,-500.0,0.00025478,2]
[311436034,1705102167823,-500.0,0.00025478,2]
[311436035,1705102167844,-1643.5,0.00025479,2]
[311436036,1705102167866,-500.0,0.00025479,2]
[311436037,1705102167887,-500.0,0.00025503,2]
[311436038,1705102167908,-500.0,0.00025503,2]
[311436039,1705102167928,-500.0,0.00025503,2]
[311436040,1705102167949,-500.0,0.00025503,2]
[311436041,1705102167973,-500.0,0.00025503,2]
[311436042,1705102167994,-500.0,0.00025503,2]
[311436043,1705102168016,-500.0,0.00025503,2]
[311436044,1705102168037,-500.0,0.00025503,2]
[311436045,1705102168058,-500.0,0.00025503,2]
[311436046,1705102168078,-500.0,0.00025503,2]
[311436047,1705102168098,-500.0,0.00025752,2]
[311436048,1705102168118,-500.0,0.00025752,2]
[311436049,1705102168138,-500.0,0.00025752,2]
[311436050,1705102168158,-161.8286803,0.00025752,2]
[311436051,1705102168179,-500.0,0.00025752,2]
[311436052,1705102168201,-500.0,0.00025752,2]
[311436053,1705102168223,-500.0,0.00025752,2]
[311436054,1705102168244,-511.78690639,0.00025752,2]
[311436055,1705102168264,-500.0,0.00025752,2]
[311436056,1705102168285,-500.0,0.00025752,2]
[311436057,1705102168305,-500.0,0.00025752,2]
[311436058,1705102168326,-562.04115728,0.00025752,2]
[311436059,1705102168347,-526.23,0.00025752,2]
[311436060,1705102168367,-500.0,0.00025752,2]
[311436061,1705102168388,-500.0,0.00025752,2]
[311436062,1705102168408,-343.29234358,0.00025752,2]
[311436063,1705102168430,-1643.5,0.00025753,2]
[311436064,1705102168451,-500.0,0.00025753,2]
[311436065,1705102168474,-500.0,0.00025776,2]
[311436066,1705102168495,-500.0,0.00025776,2]
[311436067,1705102168516,-500.0,0.00025776,2]
[311436068,1705102168537,-605.6,0.00025776,2]
[311436069,1705102168558,-500.0,0.00025776,2]
[311436070,1705102168579,-500.0,0.00026026,2]
[311436071,1705102168601,-500.0,0.00026026,2]
[311436072,1705102168623,-500.0,0.00026026,2]
[311436073,1705102168644,-1643.5,0.00026027,2]
[311436074,1705102168665,-500.0,0.00026027,2]
[311436075,1705102168685,-500.0,0.0002605,2]
[311436076,1705102168706,-500.0,0.0002605,2]
[311436077,1705102168726,-500.0,0.0002605,2]
[311436078,1705102168747,-174.39,0.000263,2]
[311436079,1705102168767,-154.7,0.000263,2]
[311436080,1705102168789,-1643.5,0.00026301,2]
[311436081,1705102168810,-500.0,0.00026301,2]
[311436082,1705102168831,-450.0,0.00026324,2]
[311436083,1705102168851,-500.0,0.00026568,2]
[311436084,1705102168872,-500.0,0.00026568,2]
[311436085,1705102168894,-609.52637741,0.00026568,2]
[311436086,1705102168916,-500.0,0.00026568,2]
[311436087,1705102168938,-500.0,0.00026568,2]
[311436088,1705102168959,-502.61811935,0.00026568,2]
[311436089,1705102168985,-500.0,0.00026568,2]
[311436090,1705102169007,-500.0,0.00026568,2]
[311436091,1705102169029,-500.0,0.00026568,2]
[311436092,1705102169052,-500.0,0.00026568,2]
[311436093,1705102169074,-500.0,0.00026568,2]
[311436094,1705102169096,-504.46218806,0.00026568,2]
[311436095,1705102169118,-528.6586103,0.00026568,2]
[311436096,1705102169140,-283.42872033,0.00026568,2]
[311436097,1705102169169,-407.75411898,0.00026568,2]
[311436098,1705102169189,-500.0,0.00026568,2]
[311436099,1705102169210,-500.0,0.00026568,2]
[311436100,1705102169233,-500.0,0.00026568,2]
[311436101,1705102169254,-500.0,0.00026568,2]
[311436102,1705102169276,-500.0,0.00026568,2]
[311436103,1705102169297,-500.0,0.00026568,2]
[311436104,1705102169319,-500.0,0.00026568,2]
[311436105,1705102169340,-500.0,0.00026568,2]
[311436106,1705102169360,-344.65784846,0.00026568,2]
[311436107,1705102169382,-500.0,0.00026568,2]
[311436108,1705102169405,-500.0,0.00026568,2]
[311436109,1705102169428,-604.40248181,0.00026568,2]
[311436110,1705102169449,-500.0,0.00026568,2]
[311436111,1705102169473,-500.0,0.00026568,2]
[311436112,1705102169495,-500.0,0.00026568,2]
[311436113,1705102169517,-503.72216458,0.00026568,2]
[311436114,1705102169539,-500.0,0.00026568,2]
[311436115,1705102169560,-500.0,0.00026568,2]
[311436116,1705102169582,-1194.12289066,0.00026569,2]
[311436117,1705102169605,-214.36881137,0.00026574,2]
[311436118,1705102169628,-1643.5,0.00026575,2]
[311436119,1705102169654,-406.62251313,0.00026575,2]
[311436120,1705102172115,-166.666667,0.00021918,2]
[311436121,1705102172137,-93.37748687,0.00026575,2]
[311436122,1705102172249,-500.0,0.00026842,2]
[311436123,1705102172269,-500.0,0.00026842,2]
[311436124,1705102172289,-500.0,0.00026842,2]
[311436125,1705102172308,-500.0,0.00026842,2]
[311436126,1705102172327,-500.0,0.00026842,2]
[311436127,1705102172347,-503.86688486,0.00026842,2]
[311436128,1705102172366,-520.31821242,0.00026842,2]
[311436129,1705102172385,-350.37951734,0.00026842,2]
[311436130,1705102172404,-500.0,0.00026842,2]
[311436131,1705102172424,-1643.5,0.00026849,2]
[311436132,1705102172446,-500.0,0.00026849,2]
[311436133,1705102172466,-154.93802479,0.00026999,4]
[311436134,1705102172486,-500.0,0.00027116,2]
[311436135,1705102172505,-1643.5,0.00027123,2]
[311436136,1705102172526,-500.0,0.00027123,2]
[311436137,1705102172545,-500.0,0.0002739,2]
[311436138,1705102172564,-2510.26228092,0.00027395,2]
[311436139,1705102172584,-872.56977946,0.00027395,2]
[311436140,1705102172602,-1734.6978235,0.00027395,2]
[311436141,1705102172622,-1091.08433284,0.00027395,2]
[311436200,1705102233352,-358.822848,0.00020756,2]
[311436201,1705102233366,-326.84593778,0.00021,2]
[311436202,1705102233376,-198.89011836,0.00021591,2]
[311436203,1705102233386,-154.93802479,0.00021592,2]
[311436204,1705102233396,-10506.50980465,0.00021593,2]
[311436205,1705102233405,-360.84666248,0.00021594,2]
[311436206,1705102233414,-1030.96840335,0.00021594,2]
[311436207,1705102233423,-260.38964263,0.00021594,2]
[311436208,1705102233433,-525.7882447,0.00021595,2]
[311436209,1705102233443,-48498.99210326,0.00021596,2]
[311436210,1705102233459,-36431.52171725,0.00021596,2]
[311436211,1705102233469,-2080.28320628,0.00021596,2]
[311436212,1705102233478,-300.0,0.00021596,2]
[311436213,1705102233487,-164.31941956,0.00021916,2]
[311436214,1705102233496,-500.0,0.00021917,2]
[311436215,1705102233505,-500.0,0.00021917,2]
[311436216,1705102233514,-564.02,0.00022191,2]
[311436217,1705102233524,-500.0,0.00022191,2]
[311436218,1705102233534,-500.0,0.00025204,2]
[311436219,1705102233543,-500.0,0.00025204,2]
[311436220,1705102233553,-500.0,0.00025204,2]
[311436221,1705102233563,-500.0,0.00025478,2]
[311436223,1705102233573,-500.0,0.00025478,2]
[311436225,1705102233583,-500.0,0.00025752,2]
[311436226,1705102233592,-500.0,0.00026568,2]
[311436228,1705102233602,-595.26091951,0.00026568,2]
[311436230,1705102233611,-555.15143661,0.00026568,2]
[311436232,1705102233621,-500.0,0.00026842,2]
[311436234,1705102233630,-460.75992736,0.00027115,2]
[311436236,1705102233639,-500.0,0.00027116,2]
[311436238,1705102233649,-1128.48,0.00027387,3]
[311436240,1705102233658,-591.78,0.0002739,3]
[311436242,1705102233667,-610.35947457,0.00027395,2]
[311436244,1705102233677,-400.15796146,0.00027395,2]
[311436246,1705102233687,-1822.38176649,0.00027395,2]
[311436248,1705102233696,-3832.65564611,0.00027395,2]
[311436250,1705102233706,-459.97137997,0.00027395,2]
[311436251,1705102233715,-3314.65607422,0.00027395,2]
[311436252,1705102233724,-261.77398148,0.00027395,2]
[311436253,1705102233733,-333.18126266,0.00027396,2]
[311436254,1705102233743,-246.71191073,0.00027396,2]
[311436256,1705102233752,-1643.5,0.00027397,2]
[311436258,1705102233761,-555.31,0.00027397,2]
[311436260,1705102233770,-4917.8600325,0.000274,2]
[311436263,1705102233780,-500.0,0.00027669,2]
[311436265,1705102233790,-500.0,0.00027669,2]
[311436267,1705102233799,-500.0,0.00027669,2]
[311436269,1705102233809,-500.0,0.00027669,2]
[311436271,1705102233818,-500.0,0.00027669,2]
[311436272,1705102233828,-500.0,0.00027669,2]
[311436274,1705102233837,-500.0,0.00027669,2]
[311436277,1705102233846,-500.0,0.00027669,2]
[311436279,1705102233856,-500.0,0.00027669,2]
[311436281,1705102233865,-500.0,0.00027669,2]
[311436283,1705102233874,-506.52051017,0.00027669,2]
[311436285,1705102233884,-1643.5,0.00027671,2]
[311436287,1705102233893,-4786.31311729,0.00027682,3]
[311436289,1705102233901,-2912.2403843,0.00027682,3]
[311436290,1705102233910,-176.475038,0.00027763,2]
[311436292,1705102233919,-174.640298,0.00027763,2]
[311436294,1705102233928,-363.7480448,0.000279,2]
[311436295,1705102233937,-344.44482029,0.00027943,2]
[311436296,1705102233946,-623.74,0.00027943,2]
[311436297,1705102233955,-500.0,0.00027943,2]
[311436298,1705102233964,-500.0,0.00027943,2]
[311436299,1705102233974,-500.0,0.00027943,2]
[311436300,1705102233983,-1643.5,0.00027945,2]
[311436302,1705102233992,-450.41159025,0.00028,2]
[311436307,1705102234115,-1643.60252809,0.00028219,2]
[311436308,1705102234125,-152.64236015,0.000285,2]
[311436310,1705102234134,-2408.12387098,0.00029,2]
[311436311,1705102234144,-155.06823002,0.00029,2]
[311436313,1705102234153,-213.18852486,0.00029085,2]
[311436314,1705102234162,-1227.60502604,0.00029085,2]
[311436315,1705102234174,-149.53383718,0.00029085,2]
[311436316,1705102234184,-2232.21223899,0.00029099,5]
[311436317,1705102234194,-153.0,0.00029178,2]
[311436318,1705102234203,-153.0,0.00029178,2]
[311436319,1705102234212,-153.0,0.00029178,2]
[311436320,1705102234222,-152.64236015,0.00029555,2]
[311436321,1705102234231,-500.0,0.00029787,2]
[311436322,1705102234240,-235.18402778,0.00029787,2]
[311436323,1705102234249,-500.0,0.00029787,2]
[311436324,1705102234258,-500.0,0.00029787,2]
[311436325,1705102234267,-500.0,0.00029787,2]
[311436326,1705102234277,-501.00806905,0.00029787,2]
[311436327,1705102234287,-500.0,0.00029787,2]
[311436328,1705102234297,-500.0,0.00029787,2]
[311436329,1705102234307,-500.0,0.00029787,2]
[311436330,1705102234317,-500.0,0.00029787,2]
[311436331,1705102234327,-1069.03659541,0.00029787,2]
[311436332,1705102234335,-500.0,0.00029787,2]
[311436333,1705102234345,-500.0,0.00029787,2]
[311436334,1705102234355,-507.04658453,0.0002979,3]
[311436335,1705102234365,-155.04095929,0.00029996,2]
[311436336,1705102234374,-481.52542038,0.00029996,2]
[311436337,1705102234384,-309.81420128,0.00029997,2]
[311436338,1705102234392,-473.01034605,0.00029997,2]
[311436339,1705102234402,-223.89868289,0.00029997,2]
[311436340,1705102234411,-232.40652231,0.00029997,2]
[311436341,1705102234420,-425.12426258,0.00029997,2]
[311436342,1705102234429,-156.91175548,0.00029997,2]
[311436343,1705102234438,-3937.50128455,0.00029997,2]
[311436344,1705102234447,-197.71403203,0.00029998,2]
[311436345,1705102234457,-860.80550823,0.00029998,2]
[311436346,1705102234467,-837.55,0.00029998,2]
[311436347,1705102234477,-837.55,0.00029998,2]
[311436348,1705102234485,-837.55,0.00029998,2]
[311436349,1705102234495,-837.55,0.00029998,2]
[311436350,1705102234504,-837.55,0.00029998,2]
[311436351,1705102234513,-837.55,0.00029998,2]
[311436352,1705102234522,-837.55,0.00029998,2]
[311436353,1705102234532,-837.55,0.00029998,2]
[311436354,1705102234541,-837.55,0.00029998,2]
[311436355,1705102234550,-837.55,0.00029998,2]
[311436356,1705102234559,-162.75529733,0.00029999,2]
[311436357,1705102234568,-271.96235488,0.00029999,2]
[311436358,1705102234577,-155.39178535,0.00029999,2]
[311436359,1705102234588,-309.76768121,0.00029999,2]
[311436360,1705102234597,-155.0,0.00029999,2]
[311436361,1705102234606,-155.0736718,0.00029999,2]
[311436362,1705102234615,-500.0,0.00029999,2]
[311436363,1705102234624,-618.52106773,0.00029999,2]
[311436364,1705102234634,-502.11934105,0.00029999,2]
[311436365,1705102234644,-1599.74298201,0.00029999,2]
[311436366,1705102234653,-500.0,0.00029999,2]
[311436367,1705102234663,-500.0,0.00029999,2]
[311436368,1705102234672,-604.61526172,0.00029999,2]
[311436369,1705102234682,-1599.74298201,0.00029999,2]
[311436370,1705102234690,-604.61526172,0.00029999,2]
[311436371,1705102234700,-340.7898573,0.00029999,2]
[311436372,1705102234709,-186.73002537,0.00029999,2]
[311436373,1705102234719,-1599.74298201,0.00029999,2]
[311436374,1705102234728,-604.61526172,0.00029999,2]
[311436375,1705102234737,-500.0,0.00029999,2]
[311436376,1705102234746,-1599.74298201,0.00029999,2]
[311436377,1705102234755,-604.61526172,0.00029999,2]
[311436378,1705102234764,-1599.74298201,0.00029999,2]
[311436379,1705102234774,-604.61526172,0.00029999,2]
[311436380,1705102234783,-159.56998922,0.00029999,2]
[311436381,1705102234792,-1599.74298201,0.00029999,2]
[311436382,1705102234802,-604.61526172,0.00029999,2]
[311436383,1705102234811,-500.0,0.00029999,2]
[311436384,1705102234820,-604.61526172,0.00029999,2]
[311436385,1705102234828,-1599.74298201,0.00029999,2]
[311436386,1705102234837,-604.61526172,0.00029999,2]
[311436387,1705102234846,-1599.74298201,0.00029999,2]
[311436388,1705102234855,-604.61526172,0.00029999,2]
[311436389,1705102234864,-1599.74298201,0.00029999,2]
[311436390,1705102234874,-604.61526172,0.00029999,2]
[311436391,1705102234883,-1599.74298201,0.00029999,2]
[311436392,1705102234892,-604.61526172,0.00029999,2]
[311436393,1705102234901,-1599.74298201,0.00029999,2]
[311436394,1705102234910,-500.0,0.00029999,2]
[311436395,1705102234919,-1599.74298201,0.00029999,2]
[311436396,1705102234928,-1599.74298201,0.00029999,2]
[311436397,1705102234937,-604.61526172,0.00029999,2]
[311436398,1705102234947,-604.61526172,0.00029999,2]
[311436399,1705102234956,-1599.74298201,0.00029999,2]
[311436400,1705102234966,-604.61526172,0.00029999,2]
[311436401,1705102234975,-1599.74298201,0.00029999,2]
[311436402,1705102234985,-1599.74298201,0.00029999,2]
[311436403,1705102234994,-1599.74298201,0.00029999,2]
[311436404,1705102235003,-1599.74298201,0.00029999,2]
[311436405,1705102235013,-604.61526172,0.00029999,2]
[311436406,1705102235025,-1599.74298201,0.00029999,2]
[311436407,1705102235035,-1599.74298201,0.00029999,2]
[311436408,1705102235045,-604.61526172,0.00029999,2]
[311436409,1705102235055,-604.61526172,0.00029999,2]
[311436410,1705102235066,-604.61526172,0.00029999,2]
[311436411,1705102235075,-1599.74298201,0.00029999,2]
[311436412,1705102235085,-1429.76498154,0.00029999,2]
[311436413,1705102235099,-169.97800047,0.00029999,2]
[311436414,1705102235108,-1599.74298201,0.00029999,2]
[311436415,1705102235118,-604.61526172,0.00029999,2]
[311436416,1705102235128,-784.87445587,0.00029999,2]
[311436417,1705102235139,-333.43248414,0.00029999,2]
[311436435,1705102237923,-174.92184312,0.00020755,2]
[311436437,1705102237932,-500.0,0.00021917,2]
[311436439,1705102237941,-478.86533775,0.00021917,2]
[311436441,1705102237950,-940.4,0.0002999,3]
[311436443,1705102237959,-360479.33707073,0.0003,2]
[311436445,1705102237969,-29043.98377294,0.0003,3]
[311436447,1705102237978,-2788.57226442,0.0003,2]
[311436449,1705102237987,-772.75,0.0003,2]
[311436451,1705102237996,-2152.16950054,0.0003,4]
[311436453,1705102238005,-5881.67740839,0.0003,4]
[311436455,1705102238014,-154.93802479,0.0003,4]
[311436457,1705102238027,-10529.66648615,0.0003,4]
[311436459,1705102238039,-242.32357812,0.0003,7]
[311436461,1705102238048,-463.55854526,0.0003,4]
[311436463,1705102238057,-639.95393342,0.0003,4]
[311436465,1705102238066,-409.93497714,0.0003,2]
[311436467,1705102238075,-155.15506132,0.0003,2]
[311436469,1705102238085,-268.18622721,0.0003,4]
[311436471,1705102238094,-190.64320071,0.0003,4]
[311436473,1705102238103,-166.10900836,0.0003,4]
[311436475,1705102238112,-350.73379528,0.0003,2]
[311436477,1705102238121,-220.03156604,0.0003,4]
[311436479,1705102238130,-500.0,0.0003,3]
[311436481,1705102238139,-1211.51545439,0.0003,2]
[311436483,1705102238148,-215.0,0.0003,2]
[311436485,1705102238157,-38393.65377577,0.00030037,3]
[311436487,1705102238166,-500.0,0.00030061,2]
[311436489,1705102238176,-500.0,0.00030061,2]
[311436491,1705102238185,-500.0,0.00030061,2]
[311436493,1705102238194,-500.0,0.00030061,2]
[311436495,1705102238203,-500.0,0.00030061,2]
[311436497,1705102238212,-300.0,0.000301,14]
[311436499,1705102238221,-1344.89,0.00030136,4]
[311436501,1705102238231,-150.0,0.00030136,2]
[311436503,1705102238240,-150.0,0.00030136,2]
[311436505,1705102238248,-150.0,0.00030136,2]
[311436507,1705102238258,-150.0,0.00030136,2]
[311436509,1705102238267,-150.0,0.00030136,2]
[311436511,1705102238277,-150.0,0.00030136,2]
[311436513,1705102238287,-150.0,0.00030136,2]
[311436515,1705102238296,-150.0,0.00030136,2]
[311436517,1705102238306,-150.0,0.00030136,2]
[311436519,1705102238316,-150.0,0.00030136,2]
[311436521,1705102238325,-150.0,0.00030136,2]
[311436523,1705102238333,-150.0,0.00030136,2]
[311436525,1705102238343,-150.0,0.00030136,2]
[311436527,1705102238352,-150.0,0.00030136,2]
[311436529,1705102238361,-153.0,0.00030137,2]
[311436530,1705102238370,-153.0,0.00030137,2]
[311436532,1705102238379,-153.0,0.00030137,2]
[311436534,1705102238389,-153.0,0.00030137,2]
[311436536,1705102238398,-153.0,0.00030137,2]
[311436538,1705102238407,-153.0,0.00030137,2]
[311436540,1705102238416,-153.0,0.00030137,2]